[Event "*** Titled Tuesday Blitz"]
[Site "Chess.com"]
[Date "2020.05.05"]
[Round "7"]
[White "shnitez"]
[Black "PowerThinking2650"]
[Result "1-0"]
[WhiteElo "2493"]
[BlackElo "2274"]
[TimeControl "180+1"]
[EndTime "11:18:52 PDT"]
[Termination "shnitez won on time"]

1. e4 {[%clk 0:03:00.9]} 1... e5 {[%clk 0:02:59.4]} 2. Nf3 {[%clk 0:03:00.2]}
2... Nc6 {[%clk 0:02:59.6]} 3. Bb5 {[%clk 0:03:00.1]} 3... a6 {[%clk 0:02:59.2]}
4. Ba4 {[%clk 0:03:00]} 4... Nf6 {[%clk 0:02:58.7]} 5. O-O {[%clk 0:02:59.6]}
5... Be7 {[%clk 0:02:57.1]} 6. Re1 {[%clk 0:02:58.6]} 6... b5 {[%clk 0:02:56.8]}
7. Bb3 {[%clk 0:02:58.8]} 7... d6 {[%clk 0:02:56.5]} 8. a4 {[%clk 0:02:58.1]}
8... b4 {[%clk 0:02:55.2]} 9. d4 {[%clk 0:02:57.4]} 9... O-O {[%clk 0:02:51.1]}
10. dxe5 {[%clk 0:02:49.9]} 10... Nxe5 {[%clk 0:02:47.9]} 11. Nxe5 {[%clk
0:02:42.8]} 11... dxe5 {[%clk 0:02:47.8]} 12. Nd2 {[%clk 0:02:43]} 12... Bg4
{[%clk 0:02:43.8]} 13. f3 {[%clk 0:02:33.9]} 13... Bc5+ {[%clk 0:02:38.2]} 14.
Kh1 {[%clk 0:02:32.8]} 14... Be6 {[%clk 0:02:37.9]} 15. Bxe6 {[%clk 0:02:20.6]}
15... fxe6 {[%clk 0:02:37.7]} 16. Nc4 {[%clk 0:02:20.7]} 16... Bd4 {[%clk
0:02:28.5]} 17. Bg5 {[%clk 0:02:04.9]} 17... h6 {[%clk 0:02:21.3]} 18. Bh4
{[%clk 0:02:00.6]} 18... Qe8 {[%clk 0:02:17]} 19. Qd2 {[%clk 0:01:38.7]} 19...
Qh5 {[%clk 0:01:48.6]} 20. Bg3 {[%clk 0:01:28.9]} 20... Rad8 {[%clk 0:01:18.9]}
21. c3 {[%clk 0:01:16]} 21... bxc3 {[%clk 0:01:14.5]} 22. bxc3 {[%clk
0:01:16.9]} 22... Ba7 {[%clk 0:00:54.9]} 23. Qa2 {[%clk 0:01:06.3]} 23... Qg5
{[%clk 0:00:47.9]} 24. Nxe5 {[%clk 0:01:01.9]} 24... Nh5 {[%clk 0:00:40.1]} 25.
Qxe6+ {[%clk 0:01:00.7]} 25... Kh7 {[%clk 0:00:37.6]} 26. Qg4 {[%clk 0:00:45]}
26... Nxg3+ {[%clk 0:00:23]} 27. Qxg3 {[%clk 0:00:45.9]} 27... Qxg3 {[%clk
0:00:23]} 28. hxg3 {[%clk 0:00:46.8]} 28... Bf2 {[%clk 0:00:22.8]} 29. Red1
{[%clk 0:00:41.1]} 29... Bxg3 {[%clk 0:00:22]} 30. Nc6 {[%clk 0:00:37.9]} 30...
Rde8 {[%clk 0:00:18.2]} 31. a5 {[%clk 0:00:25.8]} 31... Rf6 {[%clk 0:00:12.3]}
32. Nb4 {[%clk 0:00:23.8]} 32... Re5 {[%clk 0:00:11.7]} 33. Rd5 {[%clk
0:00:23.3]} 33... c5 {[%clk 0:00:06.3]} 34. Rxe5 {[%clk 0:00:11.9]} 34... Bxe5
{[%clk 0:00:04.9]} 35. Nd5 {[%clk 0:00:12.8]} 35... Rg6 {[%clk 0:00:03.5]} 36.
Rb1 {[%clk 0:00:12]} 36... Rg3 {[%clk 0:00:01.2]} 37. Rb6 {[%clk 0:00:10.8]} 1-0

[Event "*** Titled Tuesday Blitz"]
[Site "Chess.com"]
[Date "2020.05.05"]
[Round "7"]
[White "Perimir"]
[Black "norwaytoadog"]
[Result "1-0"]
[WhiteElo "2356"]
[BlackElo "2179"]
[TimeControl "180+1"]
[EndTime "11:18:52 PDT"]
[Termination "Perimir won on time"]

1. e4 {[%clk 0:03:00.9]} 1... c5 {[%clk 0:02:59.5]} 2. Nc3 {[%clk 0:03:00.6]}
2... Nc6 {[%clk 0:02:59]} 3. g3 {[%clk 0:03:01.1]} 3... g6 {[%clk 0:02:58.9]} 4.
Bg2 {[%clk 0:03:01.8]} 4... Bg7 {[%clk 0:02:59]} 5. d3 {[%clk 0:03:02.4]} 5...
d6 {[%clk 0:02:57.9]} 6. Be3 {[%clk 0:03:02.9]} 6... Rb8 {[%clk 0:02:57.1]} 7.
Qd2 {[%clk 0:03:00.5]} 7... b5 {[%clk 0:02:56.8]} 8. Nf3 {[%clk 0:02:56.3]} 8...
b4 {[%clk 0:02:54]} 9. Nd1 {[%clk 0:02:56.3]} 9... e6 {[%clk 0:02:38.7]} 10. O-O
{[%clk 0:02:47.8]} 10... Nd4 {[%clk 0:02:32.4]} 11. c3 {[%clk 0:02:45.6]} 11...
Nxf3+ {[%clk 0:02:23.1]} 12. Bxf3 {[%clk 0:02:45.3]} 12... h5 {[%clk 0:02:22.5]}
13. d4 {[%clk 0:02:43.9]} 13... bxc3 {[%clk 0:02:09.7]} 14. Nxc3 {[%clk
0:02:39.8]} 14... Ba6 {[%clk 0:01:40.5]} 15. Rfd1 {[%clk 0:02:35.9]} 15... c4
{[%clk 0:01:37.3]} 16. h4 {[%clk 0:02:25.3]} 16... Ne7 {[%clk 0:01:25.3]} 17.
Bg2 {[%clk 0:02:24.1]} 17... O-O {[%clk 0:01:15.6]} 18. Rab1 {[%clk 0:02:20.5]}
18... d5 {[%clk 0:01:08.4]} 19. Bg5 {[%clk 0:02:02.2]} 19... f6 {[%clk
0:01:05.4]} 20. Bh6 {[%clk 0:02:02.2]} 20... Qd6 {[%clk 0:00:58.5]} 21. Re1
{[%clk 0:01:16.7]} 21... Kh7 {[%clk 0:00:46.4]} 22. Bxg7 {[%clk 0:01:10.2]}
22... Kxg7 {[%clk 0:00:46]} 23. e5 {[%clk 0:01:08.8]} 23... fxe5 {[%clk
0:00:42.3]} 24. Rxe5 {[%clk 0:01:09.7]} 24... Rf5 {[%clk 0:00:37.3]} 25. Rbe1
{[%clk 0:01:06.5]} 25... Rxe5 {[%clk 0:00:37.2]} 26. dxe5 {[%clk 0:00:50.3]}
26... Qd8 {[%clk 0:00:31.7]} 27. Bh3 {[%clk 0:00:46.5]} 27... Rb6 {[%clk
0:00:24.5]} 28. Qg5 {[%clk 0:00:44.3]} 28... Qf8 {[%clk 0:00:16.9]} 29. Re2
{[%clk 0:00:32.5]} 29... Bc8 {[%clk 0:00:15.4]} 30. Na4 {[%clk 0:00:30.9]} 30...
Ra6 {[%clk 0:00:13.5]} 31. Nc5 {[%clk 0:00:30.4]} 31... Rxa2 {[%clk 0:00:12.2]}
32. Bxe6 {[%clk 0:00:28.2]} 32... Ra1+ {[%clk 0:00:11]} 33. Kg2 {[%clk
0:00:25.5]} 33... d4 {[%clk 0:00:08.8]} 34. Bxc8 {[%clk 0:00:21.9]} 34... Nxc8
{[%clk 0:00:08.1]} 35. Ne6+ {[%clk 0:00:21.5]} 35... Kf7 {[%clk 0:00:06.7]} 36.
Qf6+ {[%clk 0:00:20]} 1-0

[Event "*** Titled Tuesday Blitz"]
[Site "Chess.com"]
[Date "2020.05.05"]
[Round "7"]
[White "hazy13"]
[Black "Islamovqaasim"]
[Result "1-0"]
[WhiteElo "2192"]
[BlackElo "2048"]
[TimeControl "180+1"]
[EndTime "11:18:52 PDT"]
[Termination "hazy13 won by checkmate"]

1. d4 {[%clk 0:03:00.9]} 1... Nf6 {[%clk 0:02:59.9]} 2. c4 {[%clk 0:03:01.3]}
2... e6 {[%clk 0:02:58.9]} 3. g3 {[%clk 0:03:01]} 3... c5 {[%clk 0:02:57.3]} 4.
d5 {[%clk 0:03:00.4]} 4... d6 {[%clk 0:02:56.3]} 5. Nc3 {[%clk 0:02:57.8]} 5...
e5 {[%clk 0:02:56.5]} 6. Bg2 {[%clk 0:02:51.1]} 6... Be7 {[%clk 0:02:55.9]} 7.
e4 {[%clk 0:02:48.2]} 7... O-O {[%clk 0:02:55.4]} 8. Nge2 {[%clk 0:02:47.4]}
8... Na6 {[%clk 0:02:52]} 9. O-O {[%clk 0:02:43.3]} 9... Nc7 {[%clk 0:02:49.8]}
10. h3 {[%clk 0:02:41.7]} 10... a6 {[%clk 0:02:48.2]} 11. a4 {[%clk 0:02:39.5]}
11... Bd7 {[%clk 0:02:47.7]} 12. f4 {[%clk 0:02:38.3]} 12... Nfe8 {[%clk
0:02:25.2]} 13. f5 {[%clk 0:02:38.1]} 13... b5 {[%clk 0:02:24.6]} 14. g4 {[%clk
0:02:27.8]} 14... b4 {[%clk 0:02:21.1]} 15. Nb1 {[%clk 0:02:27.2]} 15... Bg5
{[%clk 0:02:21]} 16. Nd2 {[%clk 0:02:24.7]} 16... Be3+ {[%clk 0:02:20.3]} 17.
Kh2 {[%clk 0:02:19.9]} 17... h5 {[%clk 0:02:18.1]} 18. Nf3 {[%clk 0:02:16.2]}
18... Bxc1 {[%clk 0:01:57.2]} 19. Qxc1 {[%clk 0:02:17.1]} 19... hxg4 {[%clk
0:01:58.1]} 20. hxg4 {[%clk 0:02:13.6]} 20... f6 {[%clk 0:01:58.2]} 21. Rh1
{[%clk 0:02:09.7]} 21... Kf7 {[%clk 0:01:58.1]} 22. Nh4 {[%clk 0:02:02.7]} 22...
a5 {[%clk 0:01:37.6]} 23. Ng6 {[%clk 0:01:59.3]} 23... Rg8 {[%clk 0:01:35.1]}
24. Ng3 {[%clk 0:01:49.9]} 24... Na6 {[%clk 0:01:31.3]} 25. b3 {[%clk
0:01:47.8]} 25... Nec7 {[%clk 0:01:14.7]} 26. Kg1 {[%clk 0:01:37.5]} 26... Qc8
{[%clk 0:01:09.9]} 27. Bf3 {[%clk 0:01:27.2]} 27... Qb7 {[%clk 0:01:08.3]} 28.
g5 {[%clk 0:01:24.5]} 28... Rae8 {[%clk 0:00:48.4]} 29. Rh7 {[%clk 0:01:18.7]}
29... Ref8 {[%clk 0:00:36.9]} 30. gxf6 {[%clk 0:01:06.4]} 30... Kxf6 {[%clk
0:00:34.3]} 31. Nh5+ {[%clk 0:00:54.9]} 31... Kf7 {[%clk 0:00:29.1]} 32. Qg5
{[%clk 0:00:53.9]} 32... Re8 {[%clk 0:00:19.4]} 33. Nh4 {[%clk 0:00:39.4]} 33...
Ne6 {[%clk 0:00:10.9]} 34. dxe6+ {[%clk 0:00:33.5]} 34... Bxe6 {[%clk
0:00:10.9]} 35. Rxg7+ {[%clk 0:00:30.4]} 35... Kf8 {[%clk 0:00:10.1]} 36. Qf6+
{[%clk 0:00:20.5]} 36... Bf7 {[%clk 0:00:10.4]} 37. Ng6# {[%clk 0:00:20.7]} 1-0

[Event "*** Titled Tuesday Blitz"]
[Site "Chess.com"]
[Date "2020.05.05"]
[Round "7"]
[White "chessuriel"]
[Black "Bossche-CM"]
[Result "0-1"]
[WhiteElo "2228"]
[BlackElo "2458"]
[TimeControl "180+1"]
[EndTime "11:18:53 PDT"]
[Termination "Bossche-CM won on time"]

1. e4 {[%clk 0:03:00.9]} 1... c5 {[%clk 0:02:59.4]} 2. Nf3 {[%clk 0:03:00.9]}
2... e6 {[%clk 0:02:59.5]} 3. d4 {[%clk 0:03:01.1]} 3... cxd4 {[%clk 0:03:00.4]}
4. Nxd4 {[%clk 0:03:01.6]} 4... Nf6 {[%clk 0:02:59.6]} 5. Nc3 {[%clk 0:03:01.1]}
5... Qb6 {[%clk 0:02:59.4]} 6. Nb3 {[%clk 0:02:57.9]} 6... Nc6 {[%clk
0:02:58.6]} 7. Be3 {[%clk 0:02:55.7]} 7... Qc7 {[%clk 0:02:57.9]} 8. Be2 {[%clk
0:02:49.4]} 8... a6 {[%clk 0:02:57.6]} 9. O-O {[%clk 0:02:48.4]} 9... b5 {[%clk
0:02:47.6]} 10. a3 {[%clk 0:02:36]} 10... Bb7 {[%clk 0:02:47.3]} 11. f4 {[%clk
0:02:34.8]} 11... d6 {[%clk 0:02:42.3]} 12. Bf3 {[%clk 0:02:33.9]} 12... Be7
{[%clk 0:02:41]} 13. Kh1 {[%clk 0:02:32.7]} 13... h5 {[%clk 0:02:39.4]} 14. f5
{[%clk 0:02:06.6]} 14... e5 {[%clk 0:02:33.6]} 15. Bg5 {[%clk 0:02:05.8]} 15...
Nb8 {[%clk 0:02:20.2]} 16. Bxf6 {[%clk 0:01:59.5]} 16... Bxf6 {[%clk 0:02:08.7]}
17. Nd5 {[%clk 0:01:59.7]} 17... Bxd5 {[%clk 0:02:05.3]} 18. Qxd5 {[%clk
0:02:00.6]} 18... Qc6 {[%clk 0:02:04.8]} 19. Rad1 {[%clk 0:01:56.2]} 19... Qxd5
{[%clk 0:02:04.4]} 20. Rxd5 {[%clk 0:01:55.2]} 20... Be7 {[%clk 0:02:02.3]} 21.
Na5 {[%clk 0:01:45.5]} 21... Nd7 {[%clk 0:02:01.3]} 22. Rfd1 {[%clk 0:01:11.1]}
22... Nb6 {[%clk 0:01:51.4]} 23. R5d2 {[%clk 0:01:09]} 23... Rb8 {[%clk
0:01:46.5]} 24. Nc6 {[%clk 0:01:06.7]} 24... Rc8 {[%clk 0:01:44.5]} 25. Nxe7
{[%clk 0:01:03.2]} 25... Kxe7 {[%clk 0:01:45.4]} 26. Rxd6 {[%clk 0:01:02]} 26...
Nc4 {[%clk 0:01:41.9]} 27. Rxa6 {[%clk 0:00:38.6]} 27... Nxb2 {[%clk 0:01:35.8]}
28. Ra7+ {[%clk 0:00:36.3]} 28... Kf6 {[%clk 0:01:31.8]} 29. Rd6+ {[%clk
0:00:29.1]} 29... Kg5 {[%clk 0:01:31.6]} 30. Rxf7 {[%clk 0:00:27.1]} 30... Kf4
{[%clk 0:01:29.1]} 31. Rxg7 {[%clk 0:00:21.3]} 31... Rxc2 {[%clk 0:01:26.9]} 32.
h4 {[%clk 0:00:17.4]} 32... Nc4 {[%clk 0:01:22.2]} 33. Rd5 {[%clk 0:00:15.4]}
33... Ne3 {[%clk 0:01:13.8]} 34. Rd3 {[%clk 0:00:14.7]} 34... Nf1 {[%clk
0:00:35.5]} 35. Kg1 {[%clk 0:00:12.7]} 35... Rc1 {[%clk 0:00:31]} 36. Bd1 {[%clk
0:00:11.9]} 36... Kxe4 {[%clk 0:00:26.4]} 37. Rdd7 {[%clk 0:00:11.4]} 37... Ne3
{[%clk 0:00:25.1]} 38. Kf2 {[%clk 0:00:08.7]} 38... Nxd1+ {[%clk 0:00:23.6]} 39.
Ke2 {[%clk 0:00:08.6]} 39... Ne3 {[%clk 0:00:22.8]} 40. Rb7 {[%clk 0:00:06.6]}
40... Rhc8 {[%clk 0:00:22.4]} 0-1

[Event "*** Titled Tuesday Blitz"]
[Site "Chess.com"]
[Date "2020.05.05"]
[Round "7"]
[White "oneshot007"]
[Black "Stronger1799"]
[Result "1-0"]
[WhiteElo "2401"]
[BlackElo "2187"]
[TimeControl "180+1"]
[EndTime "11:18:53 PDT"]
[Termination "oneshot007 won by resignation"]

1. e4 {[%clk 0:03:00.9]} 1... c5 {[%clk 0:02:59.3]} 2. Nf3 {[%clk 0:03:00.9]}
2... e6 {[%clk 0:02:59]} 3. Nc3 {[%clk 0:03:00.3]} 3... Nc6 {[%clk 0:02:58.6]}
4. d4 {[%clk 0:03:00.6]} 4... cxd4 {[%clk 0:02:59.5]} 5. Nxd4 {[%clk 0:03:01]}
5... Qc7 {[%clk 0:03:00.1]} 6. g3 {[%clk 0:03:00.6]} 6... a6 {[%clk 0:02:56.5]}
7. Bg2 {[%clk 0:03:00.7]} 7... Nf6 {[%clk 0:02:52.6]} 8. O-O {[%clk 0:03:00.6]}
8... Bc5 {[%clk 0:02:51]} 9. Nxc6 {[%clk 0:02:56.1]} 9... dxc6 {[%clk
0:02:45.3]} 10. Na4 {[%clk 0:02:54.4]} 10... Ba7 {[%clk 0:02:42.1]} 11. c4
{[%clk 0:02:47.4]} 11... b5 {[%clk 0:02:39]} 12. cxb5 {[%clk 0:02:21.8]} 12...
axb5 {[%clk 0:02:31.6]} 13. Nc3 {[%clk 0:02:21]} 13... O-O {[%clk 0:02:29.8]}
14. Bf4 {[%clk 0:02:16.6]} 14... e5 {[%clk 0:02:28.4]} 15. Bg5 {[%clk
0:02:16.7]} 15... Bg4 {[%clk 0:02:22]} 16. Qc2 {[%clk 0:02:12.3]} 16... Qd6
{[%clk 0:02:15]} 17. Kh1 {[%clk 0:01:35.3]} 17... b4 {[%clk 0:02:03.8]} 18. Nd1
{[%clk 0:01:27.2]} 18... Bd4 {[%clk 0:01:57.2]} 19. Ne3 {[%clk 0:01:18.3]} 19...
Be6 {[%clk 0:01:51.2]} 20. Bxf6 {[%clk 0:01:04.4]} 20... gxf6 {[%clk 0:01:31]}
21. Rfd1 {[%clk 0:01:02.6]} 21... Rxa2 {[%clk 0:01:16.6]} 22. Rxa2 {[%clk
0:00:59.1]} 22... Bxa2 {[%clk 0:01:17.5]} 23. Nf5 {[%clk 0:00:59.3]} 23... Qe6
{[%clk 0:00:56.9]} 24. Nxd4 {[%clk 0:00:35.6]} 24... exd4 {[%clk 0:00:49.7]} 25.
Rxd4 {[%clk 0:00:36.5]} 25... Bb3 {[%clk 0:00:42.3]} 26. Qc5 {[%clk 0:00:22.1]}
26... Ra8 {[%clk 0:00:16.4]} 27. h4 {[%clk 0:00:21.6]} 27... Qe5 {[%clk
0:00:13.4]} 28. Qxb4 {[%clk 0:00:19.9]} 28... c5 {[%clk 0:00:12.5]} 29. Qxb3
{[%clk 0:00:14.8]} 29... Qxd4 {[%clk 0:00:05.1]} 30. Qf3 {[%clk 0:00:12.9]}
30... Re8 {[%clk 0:00:04.2]} 31. Kh2 {[%clk 0:00:12.2]} 31... Kf8 {[%clk
0:00:04.3]} 32. Qh5 {[%clk 0:00:12.2]} 32... Qxb2 {[%clk 0:00:04.3]} 33. Qxh7
{[%clk 0:00:12.4]} 33... Ke7 {[%clk 0:00:04.3]} 34. Qf5 {[%clk 0:00:12.4]} 34...
Qxf2 {[%clk 0:00:04.3]} 35. Qxf2 {[%clk 0:00:12]} 1-0

[Event "*** Titled Tuesday Blitz"]
[Site "Chess.com"]
[Date "2020.05.05"]
[Round "7"]
[White "PauloCesarCosta_sad"]
[Black "MathiasWomacka"]
[Result "0-1"]
[WhiteElo "2203"]
[BlackElo "2451"]
[TimeControl "180+1"]
[EndTime "11:18:54 PDT"]
[Termination "MathiasWomacka won on time"]

1. Nf3 {[%clk 0:03:00.9]} 1... c5 {[%clk 0:02:59.1]} 2. c4 {[%clk 0:03:00.8]}
2... Nf6 {[%clk 0:02:58.6]} 3. Nc3 {[%clk 0:03:00.6]} 3... e6 {[%clk 0:02:58.4]}
4. g3 {[%clk 0:02:59.4]} 4... b6 {[%clk 0:02:58.7]} 5. Bg2 {[%clk 0:02:58.8]}
5... Bb7 {[%clk 0:02:59]} 6. O-O {[%clk 0:02:59]} 6... Be7 {[%clk 0:02:58.7]} 7.
d4 {[%clk 0:02:52.1]} 7... cxd4 {[%clk 0:02:58.3]} 8. Qxd4 {[%clk 0:02:52.7]}
8... d6 {[%clk 0:02:58.7]} 9. Bg5 {[%clk 0:02:41.9]} 9... a6 {[%clk 0:02:56.9]}
10. Bxf6 {[%clk 0:02:24.9]} 10... Bxf6 {[%clk 0:02:57.8]} 11. Qd3 {[%clk
0:02:25.4]} 11... Ra7 {[%clk 0:02:47.5]} 12. Rad1 {[%clk 0:02:11.3]} 12... Be7
{[%clk 0:02:46.9]} 13. Ne4 {[%clk 0:01:55.5]} 13... Bxe4 {[%clk 0:02:45.1]} 14.
Qxe4 {[%clk 0:01:55.7]} 14... O-O {[%clk 0:02:44.5]} 15. Nd4 {[%clk 0:01:47.4]}
15... Qc8 {[%clk 0:02:41.5]} 16. b3 {[%clk 0:01:34.8]} 16... Qc5 {[%clk
0:02:36.3]} 17. Rd2 {[%clk 0:01:26.6]} 17... Re8 {[%clk 0:02:21.2]} 18. Rfd1
{[%clk 0:01:25.7]} 18... Bf8 {[%clk 0:02:19]} 19. Qh4 {[%clk 0:01:12.4]} 19...
b5 {[%clk 0:02:05.8]} 20. cxb5 {[%clk 0:01:05.5]} 20... axb5 {[%clk 0:02:06.7]}
21. Be4 {[%clk 0:01:05.9]} 21... g6 {[%clk 0:02:05.9]} 22. Rc2 {[%clk
0:00:59.8]} 22... Qb6 {[%clk 0:01:58.6]} 23. e3 {[%clk 0:01:00]} 23... d5 {[%clk
0:01:55.8]} 24. Bd3 {[%clk 0:00:54.5]} 24... b4 {[%clk 0:01:55.3]} 25. Rdc1
{[%clk 0:00:50.3]} 25... e5 {[%clk 0:01:39]} 26. Nb5 {[%clk 0:00:45.4]} 26...
Rae7 {[%clk 0:00:54.1]} 27. Qxb4 {[%clk 0:00:34.8]} 27... Na6 {[%clk 0:00:31.5]}
28. Qd2 {[%clk 0:00:29.5]} 28... Re6 {[%clk 0:00:31.7]} 29. a4 {[%clk
0:00:24.4]} 29... Nc5 {[%clk 0:00:30.5]} 30. a5 {[%clk 0:00:15.3]} 30... Qb8
{[%clk 0:00:19.8]} 31. b4 {[%clk 0:00:08.4]} 31... Nxd3 {[%clk 0:00:19.1]} 32.
Qxd3 {[%clk 0:00:08.3]} 32... Bxb4 {[%clk 0:00:17]} 33. Rb1 {[%clk 0:00:04.3]}
33... Bxa5 {[%clk 0:00:16.5]} 34. Rcb2 {[%clk 0:00:02.5]} 34... Qd8 {[%clk
0:00:15.5]} 0-1

[Event "*** Titled Tuesday Blitz"]
[Site "Chess.com"]
[Date "2020.05.05"]
[Round "7"]
[White "vladimirdamjanovic"]
[Black "hansen"]
[Result "0-1"]
[WhiteElo "2606"]
[BlackElo "2932"]
[TimeControl "180+1"]
[EndTime "11:18:55 PDT"]
[Termination "hansen won by checkmate"]

1. d4 {[%clk 0:03:00.9]} 1... Nf6 {[%clk 0:02:56.3]} 2. c4 {[%clk 0:02:59.1]}
2... e6 {[%clk 0:02:51]} 3. Nc3 {[%clk 0:02:55.5]} 3... Bb4 {[%clk 0:02:49]} 4.
f3 {[%clk 0:02:55.1]} 4... O-O {[%clk 0:02:45.1]} 5. a3 {[%clk 0:02:52.8]} 5...
Bxc3+ {[%clk 0:02:38.8]} 6. bxc3 {[%clk 0:02:53.7]} 6... Nh5 {[%clk 0:02:39.6]}
7. Nh3 {[%clk 0:02:51.6]} 7... f5 {[%clk 0:02:39.7]} 8. g3 {[%clk 0:02:50]} 8...
Nc6 {[%clk 0:02:39]} 9. Nf2 {[%clk 0:02:41.5]} 9... b6 {[%clk 0:02:37.8]} 10.
Bg2 {[%clk 0:02:41.3]} 10... Ba6 {[%clk 0:02:37.4]} 11. c5 {[%clk 0:02:35.9]}
11... Qe8 {[%clk 0:02:33]} 12. O-O {[%clk 0:02:31.9]} 12... Na5 {[%clk
0:02:33.2]} 13. Qc2 {[%clk 0:02:28.4]} 13... d6 {[%clk 0:02:28.9]} 14. Re1
{[%clk 0:02:28.6]} 14... Nf6 {[%clk 0:02:14.1]} 15. e4 {[%clk 0:02:22.4]} 15...
fxe4 {[%clk 0:02:11.1]} 16. Nxe4 {[%clk 0:02:22.8]} 16... Nxe4 {[%clk
0:02:03.6]} 17. fxe4 {[%clk 0:02:11.6]} 17... e5 {[%clk 0:02:03.4]} 18. cxd6
{[%clk 0:02:09]} 18... cxd6 {[%clk 0:02:03.4]} 19. Be3 {[%clk 0:01:58.1]} 19...
Rc8 {[%clk 0:01:59.2]} 20. Rad1 {[%clk 0:01:36.3]} 20... Qe6 {[%clk 0:01:56.1]}
21. dxe5 {[%clk 0:01:30.1]} 21... dxe5 {[%clk 0:01:55]} 22. Rd5 {[%clk
0:01:30.3]} 22... Bc4 {[%clk 0:01:50.9]} 23. Rd2 {[%clk 0:01:27.4]} 23... h6
{[%clk 0:01:49.7]} 24. Qb1 {[%clk 0:01:16.7]} 24... Rf6 {[%clk 0:01:40]} 25. h4
{[%clk 0:01:11.4]} 25... Rcf8 {[%clk 0:01:38]} 26. Kh2 {[%clk 0:01:09.7]} 26...
Qf7 {[%clk 0:00:57.1]} 27. Red1 {[%clk 0:01:05.2]} 27... Qg6 {[%clk 0:00:48.7]}
28. Qb4 {[%clk 0:00:45.3]} 28... Bb3 {[%clk 0:00:45.7]} 29. Rb1 {[%clk
0:00:36.6]} 29... Be6 {[%clk 0:00:43.1]} 30. Rd6 {[%clk 0:00:32.1]} 30... Nc4
{[%clk 0:00:32.4]} 31. Rxe6 {[%clk 0:00:32.3]} 31... Nxe3 {[%clk 0:00:31.7]} 32.
Rxf6 {[%clk 0:00:31.9]} 32... Rxf6 {[%clk 0:00:29.7]} 33. Qb3+ {[%clk
0:00:15.9]} 33... Kh7 {[%clk 0:00:29.6]} 34. Re1 {[%clk 0:00:13.1]} 34... Ng4+
{[%clk 0:00:21.6]} 35. Kg1 {[%clk 0:00:11.7]} 35... Qe8 {[%clk 0:00:20.7]} 36.
Qd5 {[%clk 0:00:07.7]} 36... Qf8 {[%clk 0:00:17.8]} 37. Bh3 {[%clk 0:00:06.9]}
37... Rf3 {[%clk 0:00:16.3]} 38. Bxg4 {[%clk 0:00:01.8]} 38... Rxg3+ {[%clk
0:00:16.5]} 39. Kh1 {[%clk 0:00:02.4]} 39... Rxg4 {[%clk 0:00:15.8]} 40. Qxe5
{[%clk 0:00:02]} 40... Qf3+ {[%clk 0:00:15.6]} 41. Kh2 {[%clk 0:00:01.7]} 41...
Qg2# {[%clk 0:00:16.5]} 0-1

[Event "*** Titled Tuesday Blitz"]
[Site "Chess.com"]
[Date "2020.05.05"]
[Round "7"]
[White "temus_galaktionov"]
[Black "politeplayer"]
[Result "1-0"]
[WhiteElo "2742"]
[BlackElo "2237"]
[TimeControl "180+1"]
[EndTime "11:18:55 PDT"]
[Termination "temus_galaktionov won by checkmate"]

1. d4 {[%clk 0:02:41.2]} 1... d5 {[%clk 0:02:56.4]} 2. c4 {[%clk 0:02:38.9]}
2... e6 {[%clk 0:02:56.7]} 3. Nf3 {[%clk 0:02:38]} 3... c5 {[%clk 0:02:56.8]} 4.
Nc3 {[%clk 0:02:36.9]} 4... cxd4 {[%clk 0:02:55.8]} 5. Nxd4 {[%clk 0:02:33.9]}
5... e5 {[%clk 0:02:55.7]} 6. Nf3 {[%clk 0:02:33.4]} 6... d4 {[%clk 0:02:55]} 7.
Nd5 {[%clk 0:02:30.9]} 7... Nc6 {[%clk 0:02:54]} 8. e4 {[%clk 0:02:30.4]} 8...
Nf6 {[%clk 0:02:48.4]} 9. Bd3 {[%clk 0:02:28.9]} 9... Bg4 {[%clk 0:02:40.9]} 10.
O-O {[%clk 0:02:25.6]} 10... Bc5 {[%clk 0:02:28.7]} 11. Bg5 {[%clk 0:02:18.9]}
11... h6 {[%clk 0:02:25]} 12. Bxf6 {[%clk 0:02:17.5]} 12... gxf6 {[%clk
0:02:24.2]} 13. h3 {[%clk 0:02:17.4]} 13... Bh5 {[%clk 0:02:17.3]} 14. Be2
{[%clk 0:01:59.4]} 14... Rg8 {[%clk 0:01:57.8]} 15. Nh4 {[%clk 0:01:59]} 15...
Bg6 {[%clk 0:01:49.7]} 16. Bd3 {[%clk 0:01:58.9]} 16... Qd6 {[%clk 0:01:35.9]}
17. Qf3 {[%clk 0:01:55.8]} 17... O-O-O {[%clk 0:01:21.8]} 18. a3 {[%clk
0:01:47.6]} 18... a6 {[%clk 0:01:01.4]} 19. b4 {[%clk 0:01:46.3]} 19... Ba7
{[%clk 0:01:00.6]} 20. Nxf6 {[%clk 0:01:42.1]} 20... Rg7 {[%clk 0:00:44.2]} 21.
Kh2 {[%clk 0:01:39.5]} 21... Ne7 {[%clk 0:00:37.5]} 22. Rfc1 {[%clk 0:01:27.6]}
22... Ng8 {[%clk 0:00:33.8]} 23. Nd5 {[%clk 0:01:24.1]} 23... f5 {[%clk
0:00:29.7]} 24. Nxg6 {[%clk 0:00:31.6]} 24... Rxg6 {[%clk 0:00:20.2]} 25. c5
{[%clk 0:00:30.6]} 25... Qe6 {[%clk 0:00:16.7]} 26. exf5 {[%clk 0:00:28.5]}
26... e4 {[%clk 0:00:14.3]} 27. Bxe4 {[%clk 0:00:20.1]} 27... Qe5+ {[%clk
0:00:12.5]} 28. g3 {[%clk 0:00:19.5]} 28... Rf6 {[%clk 0:00:11.4]} 29. Nxf6
{[%clk 0:00:18.5]} 29... Nxf6 {[%clk 0:00:09.9]} 30. Bxb7+ {[%clk 0:00:18.3]}
30... Kd7 {[%clk 0:00:08.6]} 31. Bxa6 {[%clk 0:00:15.5]} 31... Bb8 {[%clk
0:00:07.9]} 32. Re1 {[%clk 0:00:13.1]} 32... Qc7 {[%clk 0:00:05.3]} 33. Qb7
{[%clk 0:00:09.9]} 33... h5 {[%clk 0:00:05.1]} 34. Bb5# {[%clk 0:00:09.2]} 1-0